bitfinex/quotes_ETHUSD_20241022
["timestamp","ask_amount","ask_price","bid_price","bid_amount"]
[1729587612517,3.79824,2632.8,2632.5,0.7795]
[1729587612721,3.79789,2633.1,2632.5,5.33733896]
[1729587612935,3.79789,2633.1,2632.5,9.13592896]
[1729587613250,3.79751,2633.3,2632.7,3.79828]
[1729587613607,3.79751,2633.3,2632.7,7.59658]
[1729587613925,3.79769,2633.2,2632.7,3.79828]
[1729587614306,3.79751,2633.3,2632.5,6.84751422]
[1729587614307,3.79785,2633.1,2632.6,3.7985]
[1729587614519,3.79785,2633.1,2632.6,4.9299535]
[1729587614727,0.7792,2633.6,2632.7,0.8411]
[1729587614899,3.79737,2633.4,2632.8,3.79811]
[1729587615441,3.79737,2633.4,2632.8,8.55317035]
[1729587615794,3.79737,2633.4,2632.9,0.05055106]
[1729587615996,3.39509612,2633.7,2633.1,0.8075]
[1729587616226,3.39509612,2633.7,2633.2,3.79757]
[1729587616227,4.19204612,2633.7,2633.2,3.79757]
[1729587616443,4.19204612,2633.7,2633.2,3.8480673]
[1729587616599,4.19204612,2633.7,2633.3,0.46555673]
[1729587616912,3.79727,2633.5,2633.4,0.05041701]
[1729587617108,4.54929,2633.6,2633.1,0.8075]
[1729587617307,3.79751,2633.3,2633.2,0.0504973]
[1729587617496,3.79751,2633.3,2632.8,4.60845]
[1729587617701,3.79751,2633.3,2632.9,0.05061774]
[1729587617911,7.59496,2633.4,2632.9,0.05061774]
[1729587618137,3.79746,2633.4,2632.9,0.05061774]
[1729587618308,3.79746,2633.4,2632.9,0.12657147]
[1729587618512,3.79746,2633.4,2632.9,3.92465147]
[1729587618714,3.79746,2633.4,2632.9,0.05061774]
[1729587619047,3.79751,2633.3,2632.9,0.05061774]
[1729587619201,3.79766,2633.2,2632.9,0.12657109]
[1729587619705,3.79766,2633.2,2632.9,0.05061774]
[1729587620105,4.252346,2633.4,2632.9,0.05061774]
[1729587620341,4.252346,2633.4,2632.9,3.92465109]
[1729587620554,3.79728,2633.5,2633.0,3.79793]
[1729587620754,4.19216612,2633.7,2633.2,0.8103]
[1729587620934,4.19216612,2633.7,2633.2,4.68387469]
[1729587621246,4.19216612,2633.7,2633.3,0.05009592]
[1729587621747,0.39509612,2633.7,2633.4,0.05005578]
[1729587624449,3.79682,2633.8,2633.5,0.8103]
[1729587624851,3.79682,2633.8,2633.6,0.04973105]
[1729587625232,0.01897107,2633.9,2633.6,0.04973105]
[1729587625527,3.79657,2634.0,2633.6,0.04973105]
[1729587625740,3.79682,2633.8,2633.6,0.04973105]
[1729587627182,4.176227,2634.0,2633.6,0.04973105]
[1729587627589,3.79652,2634.0,2633.6,0.04973105]
[1729587628584,3.79652,2634.0,2633.7,0.8298]
[1729587628992,3.79652,2634.0,2633.8,0.04957303]
[1729587629494,3.79652,2634.0,2633.7,0.8298]
[1729587629786,3.79627,2634.2,2633.9,0.04952735]
[1729587629997,4.39090031,2634.3,2633.9,0.8048]
[1729587630292,3.79603,2634.4,2634.0,0.04948723]
[1729587630293,0.39378119,2634.1,2634.0,0.04948723]
[1729587630656,7.59208,2634.4,2634.0,0.04948723]
[1729587631065,3.79601,2634.4,2634.0,0.04948723]
[1729587631892,3.79601,2634.4,2633.9,4.60137]
[1729587632301,3.79601,2634.4,2634.0,0.04908728]
[1729587632609,3.79623,2634.2,2634.0,0.04908728]
[1729587632809,3.79636,2634.1,2634.0,0.04908728]
[1729587633520,3.79654,2634.0,2633.7,0.8331]
[1729587633710,2.96221661,2633.9,2633.4,0.8331]
[1729587634012,3.79722,2633.5,2633.0,0.90904136]
[1729587634167,7.59411,2633.7,2633.1,3.7978]
[1729587634368,3.0,2634.0,2633.0,1.3797455]
[1729587634567,3.7968,2633.8,2633.3,3.79751]
[1729587634767,3.79673,2633.9,2633.4,4.63033]
[1729587634999,3.79645,2634.1,2633.6,3.79707]
[1729587635383,3.79645,2634.1,2633.5,3.79711]
[1729587635910,3.79645,2634.1,2633.5,7.59425]
[1729587636120,3.79645,2634.1,2633.5,3.79711]
[1729587636320,3.79645,2634.1,2633.6,0.07593393]
[1729587636871,3.79645,2634.1,2633.7,0.8017]
[1729587637110,3.79622,2634.2,2633.8,0.0492064]
[1729587637413,3.79622,2634.2,2633.7,4.59855]
[1729587637622,4.18984892,2634.3,2633.9,0.04916628]
[1729587637912,4.18984892,2634.3,2634.0,0.04912616]
[1729587638205,4.18983892,2634.3,2634.0,0.04912616]
[1729587638513,7.98604892,2634.3,2634.1,0.04908604]
[1729587638716,7.98604892,2634.3,2633.8,3.79677]
[1729587638879,7.98604892,2634.3,2633.9,0.04916628]
[1729587638880,4.18983892,2634.3,2633.9,0.04916628]
[1729587639086,3.79628,2634.2,2633.7,4.59852]
[1729587639396,7.59242,2634.2,2633.8,0.0492064]
[1729587639598,3.79648,2634.1,2633.8,0.0492064]
[1729587639910,3.79648,2634.1,2633.7,0.8017]
[1729587640107,3.79648,2634.1,2633.8,0.04916753]
[1729587640315,3.79648,2634.1,2633.7,0.8017]
[1729587640518,3.79648,2634.1,2633.8,0.04916753]
[1729587640699,3.79648,2634.1,2633.7,0.8017]
[1729587641080,3.79648,2634.1,2633.8,0.04914531]
[1729587641312,3.79621,2634.2,2633.7,0.8017]
[1729587641493,3.79639,2634.1,2633.8,0.04914531]
[1729587641679,3.79639,2634.1,2633.7,0.8017]
[1729587641875,3.79639,2634.1,2633.8,0.04914531]
[1729587642081,3.79639,2634.1,2633.7,0.8017]
[1729587642312,3.79639,2634.1,2633.8,0.04914531]
[1729587642480,7.59254,2634.2,2633.7,0.8017]
[1729587642809,7.59254,2634.2,2633.8,0.04914531]
[1729587643115,3.79637,2634.1,2633.7,0.8017]
[1729587643288,3.79621,2634.2,2633.8,0.04914531]
[1729587643622,3.79621,2634.2,2633.8,0.07592824]
[1729587643919,7.59252,2634.2,2633.9,0.04910519]
[1729587644383,3.79621,2634.2,2633.9,0.04910519]
[1729587644601,3.79636,2634.1,2633.9,0.04910519]
[1729587644808,3.79621,2634.2,2633.9,0.04910519]
[1729587645130,3.79621,2634.2,2633.3,3.80741]
[1729587645131,4.55045,2634.1,2633.4,4.60543]
[1729587645336,3.79665,2633.9,2633.5,0.04915464]
[1729587645928,7.59337,2633.9,2633.5,0.04915464]
[1729587646113,3.79665,2633.9,2633.5,0.04915464]
[1729587647037,3.79644,2634.1,2633.7,0.7538]
[1729587647328,3.7965,2634.0,2633.8,0.04903425]
[1729587647532,3.7965,2634.0,2633.7,0.7538]
[1729587647835,3.7965,2634.0,2633.8,0.04903425]
[1729587648143,3.7965,2634.0,2633.7,0.7538]
[1729587648341,3.7965,2634.0,2633.9,0.04899412]
[1729587648639,0.41898889,2634.2,2633.7,0.7538]
[1729587648640,3.79636,2634.1,2633.8,0.04903425]
[1729587648940,3.79659,2634.0,2633.9,0.04899412]
[1729587649094,3.79636,2634.1,2633.9,0.04899412]
[1729587649534,3.79636,2634.1,2633.7,0.7538]
[1729587649736,3.79636,2634.1,2634.0,0.048954]
[1729587650025,3.79621,2634.2,2633.8,0.07593251]
[1729587650233,3.79621,2634.2,2634.0,0.048954]
[1729587650440,4.18982892,2634.3,2633.9,0.04899412]
[1729587650652,4.18982892,2634.3,2634.1,0.04891388]
[1729587650997,4.18982892,2634.3,2633.7,4.55065]
[1729587651197,7.98601892,2634.3,2634.2,0.04887377]
[1729587651400,3.79622,2634.2,2633.7,4.55065]
[1729587652144,3.79622,2634.2,2633.8,0.04903425]
[1729587652640,3.79622,2634.2,2633.7,4.55065]
[1729587652792,3.79622,2634.2,2633.9,0.04899412]
[1729587652997,3.79622,2634.2,2633.8,0.04903425]
[1729587653196,3.79622,2634.2,2634.0,0.048954]
[1729587653433,3.79622,2634.2,2633.9,0.04899412]
[1729587653602,3.79622,2634.2,2634.1,0.04891388]
[1729587653813,3.79622,2634.2,2634.0,0.048954]
[1729587654024,3.79495455,2634.2,2634.1,0.04891388]
[1729587654415,3.79495455,2634.2,2633.7,4.55065]
[1729587654615,3.79495455,2634.2,2634.1,0.04891388]
[1729587654942,3.79495455,2634.2,2633.7,4.55065]
[1729587655148,3.79495455,2634.2,2634.1,0.04891388]
[1729587655311,4.18982892,2634.3,2633.8,3.79676]
[1729587655638,4.18982892,2634.3,2633.9,0.04899412]
[1729587656342,0.39367892,2634.3,2633.9,0.04899412]
[1729587656507,3.7965,2634.0,2633.9,0.04899412]
[1729587656707,3.7965,2634.0,2633.5,0.7775]
[1729587656926,3.7965,2634.0,2633.6,0.04904787]
[1729587657139,4.19021988,2634.0,2633.6,0.04904787]
[1729587657320,3.79672,2633.9,2633.6,0.04904787]
[1729587657526,4.62453,2633.7,2633.6,0.04904787]
[1729587657710,0.8276,2633.7,2633.1,0.7867]
[1729587658018,0.8276,2633.7,2632.7,5.80316526]
[1729587658019,3.79761,2633.3,2633.2,0.04754878]
[1729587658424,7.5952,2633.3,2632.9,0.7867]
[1729587658663,4.59889,2633.3,2633.2,0.04754878]
[1729587658806,3.79781,2633.1,2632.7,0.82287107]
[1729587659013,3.79781,2633.1,2632.7,0.8039]
[1729587659510,3.79804,2633.0,2632.7,0.8039]
[1729587659739,3.79812,2632.9,2632.5,0.7705]
[1729587660017,3.79812,2632.9,2632.5,1.38605101]
[1729587661163,3.79781,2633.1,2632.5,5.18471101]
[1729587661312,3.79781,2633.1,2632.6,0.07596207]
[1729587662029,3.79803,2633.0,2632.6,0.07596207]
[1729587662270,0.7733,2632.8,2632.3,1.58614013]
[1729587662551,3.7984,2632.7,2632.3,0.8278717]
[1729587663456,0.7733,2632.8,2632.3,0.8278717]
[1729587663457,4.57156,2632.8,2632.3,0.8278717]
[1729587664424,8.36988,2632.8,2632.3,0.8278717]
[1729587664651,4.57156,2632.8,2632.3,0.8278717]
[1729587664924,4.57156,2632.8,2632.4,0.53924617]
[1729587665144,3.79826,2632.8,2632.4,0.53924617]
[1729587665523,7.59662,2632.8,2632.4,0.53924617]
[1729587665866,3.79755,2633.3,2632.5,3.79858]
[1729587665867,3.79783,2633.1,2632.5,3.79858]
[1729587666159,3.79797,2633.0,2632.4,4.61952]
[1729587666463,3.79809,2632.9,2632.4,4.61952]
[1729587666667,3.79826,2632.8,2632.4,0.8208]
[1729587666877,7.59631,2632.9,2632.5,0.07596452]
[1729587667022,3.79825,2632.8,2632.4,1.36556917]
[1729587667357,3.79825,2632.8,2632.5,0.04796855]
[1729587667559,3.79809,2632.9,2632.5,0.04796855]
[1729587667560,3.7984,2632.7,2632.5,0.04796855]
[1729587668734,3.79852,2632.6,2632.5,0.04796855]
[1729587669061,3.79852,2632.6,2632.1,0.9087736]
[1729587669264,5.37967282,2632.6,2632.5,0.04852342]
[1729587669465,5.37967282,2632.6,2632.1,0.1280736]
[1729587669466,3.7991,2632.2,2632.1,0.1280736]
[1729587669698,4.5813,2632.2,2632.1,0.1280736]
[1729587669964,4.5813,2632.2,2632.1,0.17512657]
[1729587670327,4.5813,2632.2,2632.1,0.1280736]
[1729587670520,4.5813,2632.2,2632.1,0.17559832]
[1729587670722,4.5813,2632.2,2632.1,0.1280736]
[1729587670922,4.5813,2632.2,2632.1,0.17559832]
[1729587671140,5.23263597,2632.2,2632.1,0.1280736]
[1729587675256,11.75275258,2632.2,2632.1,0.17581487]
[1729587675577,8.81053597,2632.2,2632.1,3.6e-06]
[1729587675861,3.80082,2631.1,2630.7,0.7512]
[1729587676033,3.80087,2631.0,2630.7,0.7512]
[1729587676234,3.80087,2631.0,2630.8,0.04833604]
[1729587676545,3.80064,2631.2,2630.7,0.7512]
[1729587676864,3.8007,2631.1,2630.8,0.04833604]
[1729587677171,3.80087,2631.0,2630.7,1.58850111]
[1729587677357,3.80087,2631.0,2630.9,0.04852357]
[1729587677666,3.80087,2631.0,2630.8,0.04856378]
[1729587677966,3.80087,2631.0,2630.7,0.7512]
[1729587677967,3.80087,2631.0,2630.9,0.04852357]
[1729587678137,3.80071,2631.1,2630.9,0.04852357]
[1729587678331,7.60154,2631.1,2630.7,0.7512]
[1729587678532,3.80071,2631.1,2630.8,0.04856378]
[1729587678770,3.80071,2631.1,2630.7,0.7512]
[1729587678967,3.80071,2631.1,2630.9,0.04852357]
[1729587679144,3.80071,2631.1,2630.8,0.04856378]
[1729587679347,3.80071,2631.1,2630.7,0.82721582]
[1729587679557,3.80071,2631.1,2630.8,0.04856378]
[1729587679775,3.80071,2631.1,2630.7,0.82721582]
[1729587679975,3.80071,2631.1,2630.9,0.04852357]
[1729587680279,3.80071,2631.1,2630.8,0.04856378]
[1729587680280,7.60153,2631.1,2630.8,0.04856378]
[1729587680476,3.80071,2631.1,2631.0,0.04848335]
[1729587680634,7.60148,2631.1,2630.9,0.04852357]
[1729587680833,3.80071,2631.1,2631.0,0.04848335]
[1729587681133,3.80071,2631.1,2630.7,0.7512]
[1729587681333,3.80071,2631.1,2630.8,0.04856378]
[1729587681539,3.80084,2631.0,2630.7,0.7512]
[1729587681760,3.80084,2631.0,2630.8,0.04947468]
[1729587682160,4.19334893,2631.1,2630.5,0.82617107]
[1729587682382,4.19334893,2631.1,2630.5,0.8072]
[1729587682383,3.80098,2630.9,2630.5,0.8072]
[1729587682950,4.19334893,2631.1,2630.6,0.07601938]
[1729587683156,7.99415893,2631.1,2630.6,0.07601938]
[1729587683358,4.19334893,2631.1,2630.6,0.07601938]
[1729587683655,7.99414893,2631.1,2630.6,0.07601938]
[1729587683853,3.80085,2631.0,2630.5,4.60865]
[1729587684265,3.80085,2631.0,2630.5,0.8072]
[1729587684465,3.80106,2630.9,2630.5,0.8072]
[1729587685053,3.80112,2630.8,2630.5,0.8072]
[1729587685249,7.60218,2630.9,2630.3,4.62573]
[1729587685565,7.60217,2630.9,2630.3,4.62573]
[1729587686293,7.60213,2630.9,2630.3,4.62573]
[1729587686496,3.80113,2630.8,2630.3,4.62573]
[1729587687687,3.80131,2630.7,2630.3,0.824]
[1729587688059,3.80144,2630.6,2630.3,0.824]
[1729587688363,3.80144,2630.6,2630.0,10.7733]
[1729587688572,3.80157,2630.5,2630.0,10.7733]
[1729587689163,3.80177,2630.4,2630.0,10.7733]
[1729587689368,0.751,2630.4,2630.0,10.0]
[1729587690464,4.55273,2630.4,2630.0,10.0]
[1729587690666,3.80194,2630.3,2630.0,10.0]
[1729587693645,11.19817123,2630.7,2630.1,4.61102]
[1729587693844,3.80142,2630.6,2630.1,4.68706152]
[1729587694015,4.19361293,2630.6,2630.1,4.61102]
[1729587694214,0.39219293,2630.6,2630.2,3.80199]
[1729587694426,4.5821,2630.8,2630.2,3.87802081]
[1729587694641,0.39218918,2630.5,2630.1,0.8089]
[1729587694814,0.39218918,2630.5,2630.1,4.68706421]
[1729587695006,0.39218918,2630.5,2630.1,8.41316]
[1729587695321,0.43709388,2630.6,2630.2,3.87793427]
[1729587695523,0.82929986,2630.6,2630.2,3.87793427]
[1729587695828,0.82929986,2630.6,2630.5,3.80155]
[1729587696005,0.43709388,2630.6,2630.5,3.80155]
[1729587696916,0.43709388,2630.6,2630.4,4.5544]
[1729587697120,0.43709388,2630.6,2630.5,0.04891377]
[1729587697539,4.19294188,2631.1,2630.5,0.04891377]
[1729587697724,3.80086,2631.0,2630.5,0.04891377]
[1729587697909,1.18501773,2631.1,2630.5,0.04891377]
[1729587698108,4.18501773,2631.1,2630.5,0.04891377]
[1729587698447,3.80121,2630.8,2630.5,0.04891377]
[1729587699311,3.80121,2630.8,2630.2,8.38363]
[1729587699519,4.56144,2630.8,2630.2,8.38363]
[1729587699736,3.80127,2630.7,2630.3,0.04899423]
[1729587701521,0.76023,2630.8,2630.3,1.63513436]
[1729587701856,3.80107,2630.9,2630.4,3.80161]
[1729587702059,3.80107,2630.9,2630.4,3.850564]
[1729587702765,7.98578773,2631.1,2630.5,0.7959]
[1729587702963,7.98578773,2631.1,2630.6,0.04870674]
[1729587703257,3.801,2630.9,2630.6,0.04870674]
[1729587703456,7.98578773,2631.1,2630.6,0.04870674]
[1729587703621,4.59943877,2631.0,2630.6,0.04870674]
[1729587703967,0.79857877,2631.0,2630.6,0.04870674]
[1729587704464,3.39216188,2631.1,2630.6,0.12472797]
[1729587704618,4.57048,2631.3,2630.7,1.58614013]
[1729587704836,4.57048,2631.3,2630.7,5.38737013]
[1729587705022,4.57048,2631.3,2630.8,1.63476643]
[1729587705232,3.80062,2631.2,2630.8,1.63476643]
[1729587705463,2.00583474,2631.3,2630.8,1.63476643]
[1729587705622,3.80054,2631.2,2630.8,1.63476643]
[1729587706357,4.57049,2631.3,2630.8,0.0486263]
[1729587706562,3.80049,2631.3,2630.9,0.7897]
[1729587706762,7.60098,2631.3,2631.0,0.04854587]
[1729587706961,7.60103,2631.3,2631.0,0.04854587]
[1729587707262,0.85886974,2631.2,2631.0,0.04854587]
[1729587707479,3.80069,2631.1,2631.0,0.04854587]
[1729587707829,3.80069,2631.1,2630.7,2.37584013]
[1729587708026,3.80069,2631.1,2631.0,0.04854587]
[1729587708229,3.80069,2631.1,2630.7,2.37584013]
[1729587708446,5.44600197,2631.1,2631.0,0.04854587]
[1729587708656,5.44600197,2631.1,2630.8,1.58614013]
[1729587708657,3.80084,2631.0,2630.8,1.58614013]
[1729587708965,7.60175,2631.0,2630.7,1.58614013]
[1729587709125,3.80084,2631.0,2630.7,1.58614013]
[1729587709325,3.80084,2631.0,2630.6,1.58614013]
[1729587709525,4.3454552,2631.0,2630.6,1.58614013]
[1729587709837,0.5446152,2631.0,2630.7,1.58614013]
[1729587710147,3.80052,2631.3,2630.8,6.17696013]
[1729587710558,3.80052,2631.3,2630.9,1.58614013]
[1729587710925,3.80052,2631.3,2630.8,2.37584013]
[1729587711365,6.8004,2631.3,2630.8,2.45185578]
[1729587711826,6.8004,2631.3,2630.8,6.25296578]
[1729587712249,6.8004,2631.3,2630.9,0.04858609]
[1729587712475,3.80054,2631.2,2630.9,0.04858609]
[1729587713867,3.80083,2631.0,2630.9,0.04858609]
[1729587714937,3.80054,2631.2,2630.9,0.04858609]
[1729587715137,4.09929869,2631.3,2630.9,0.04858609]
[1729587715138,1.09929869,2631.3,2630.9,3.84955609]
[1729587715327,3.80043,2631.3,2630.9,0.04858609]
[1729587715929,4.19258686,2631.4,2630.9,0.04858609]
[1729587716132,3.80056,2631.2,2630.9,0.04858609]
[1729587716434,4.19258686,2631.4,2630.9,0.04858609]
[1729587716435,7.99298686,2631.4,2630.9,0.04858609]
[1729587716635,3.80041,2631.3,2630.9,0.04858609]
[1729587716858,4.18964865,2631.3,2630.9,0.04858609]
[1729587717034,3.80057,2631.2,2630.9,0.04858609]
[1729587717463,3.8007,2631.1,2630.9,0.04858609]
[1729587717765,3.80057,2631.2,2630.9,0.04858609]
[1729587717957,7.60125,2631.2,2630.9,0.04858609]
[1729587718266,3.80057,2631.2,2630.9,0.04858609]
[1729587718644,7.6012,2631.2,2630.9,0.04858609]
[1729587719358,3.80057,2631.2,2630.9,0.04858609]
[1729587721378,3.80071,2631.1,2630.9,0.04858609]
[1729587721580,4.25877655,2631.2,2630.9,0.04858609]
[1729587721879,3.80069,2631.1,2630.9,0.04858609]
[1729587722168,4.25877655,2631.2,2630.9,0.04858609]
[1729587722383,11.13894661,2631.0,2630.9,0.04858609]
[1729587722668,3.80167,2630.5,2630.0,10.8019]
[1729587722875,7.60333,2630.5,2630.0,10.8019]
[1729587723075,7.60333,2630.5,2630.1,0.0453697]
[1729587723076,3.80166,2630.5,2630.1,0.0453697]
[1729587723248,3.80185,2630.3,2630.1,0.0453697]
[1729587723570,8.39713,2630.5,2630.1,0.0453697]
[1729587723732,3.80171,2630.4,2630.1,0.0453697]
[1729587724128,3.80184,2630.3,2630.1,0.0453697]
[1729587724750,3.80199,2630.2,2630.1,0.0453697]
[1729587724978,3.80184,2630.3,2630.1,0.0453697]
[1729587725174,7.6038,2630.3,2630.1,0.0453697]
[1729587725501,7.60378,2630.3,2630.1,0.0453697]
[1729587725657,3.80199,2630.2,2630.1,0.0453697]
[1729587727368,4.57589,2630.2,2630.1,0.0453697]
[1729587727869,8.12589,2630.2,2630.1,0.0453697]
[1729587728368,10.31420661,2630.2,2630.0,4.11777948]
[1729587728602,7.353,2629.5,2629.4,0.14704467]
[1729587728909,12.58342161,2629.5,2629.4,0.1280736]
[1729587730284,12.58342161,2629.5,2629.2,2.0]
[1729587730285,3.80329,2629.3,2629.2,2.0]
[1729587730591,10.31579661,2629.1,2629.0,0.05438244]
[1729587730811,11.08999661,2629.1,2629.0,0.05438244]
[1729587730966,11.09999661,2629.1,2629.0,0.05438244]
[1729587732001,8.12778,2629.1,2629.0,0.05438244]
[1729587733207,8.52057198,2629.1,2629.0,0.05438244]
[1729587733402,10.12922674,2629.1,2629.0,0.05438244]
[1729587735873,10.13922674,2629.1,2629.0,0.05438244]
[1729587736271,10.14922674,2629.1,2629.0,0.05438244]
[1729587737102,13.11144335,2629.1,2629.0,0.05438244]
[1729587737487,10.14922674,2629.1,2629.0,0.05438244]
[1729587737686,13.11144335,2629.1,2629.0,0.05438244]
[1729587738111,10.14922674,2629.1,2629.0,0.05438244]
[1729587738282,9.57922674,2629.1,2629.0,0.05438244]
[1729587738513,1.16699198,2629.1,2629.0,0.05438244]
[1729587738864,0.39279198,2629.1,2629.0,0.05438244]
[1729587739001,0.39279198,2629.1,2629.0,0.09125683]
[1729587739697,1.22539276,2629.6,2629.0,3.89497683]
[1729587739698,0.39679276,2629.6,2629.0,3.89497683]
[1729587739895,0.39679276,2629.6,2629.2,3.80342]
[1729587740111,2.96221661,2629.4,2629.0,0.09125683]
[1729587740294,4.09953166,2629.3,2629.0,0.05438244]
[1729587740642,4.56883,2629.2,2629.0,0.05438244]
[1729587741143,0.7653,2629.2,2629.0,0.05438244]
[1729587741504,3.29622166,2629.3,2629.0,0.05438244]
[1729587742063,0.39242156,2629.7,2629.1,4.61729]
[1729587742064,3.39242156,2629.7,2629.1,4.61729]
[1729587742202,0.39242156,2629.7,2629.3,3.80322]
[1729587742643,0.39242156,2629.7,2629.4,0.0362404]
[1729587743098,0.39242156,2629.7,2629.5,3.80298]
[1729587743294,0.39242156,2629.7,2629.6,3.80285]
[1729587743642,3.80177,2630.4,2629.6,3.80285]
[1729587743643,3.80177,2630.4,2629.7,3.8027]
[1729587743843,0.39241996,2630.4,2629.7,3.80261]
[1729587744012,3.80198,2630.3,2629.8,0.03590142]
[1729587744341,4.19412996,2630.4,2629.7,3.80262]
[1729587744494,0.39241996,2630.4,2629.9,0.03567213]
[1729587744703,0.39241996,2630.4,2630.1,3.80205]
[1729587744896,0.43712852,2630.5,2630.3,3.80184]
[1729587745197,0.43712852,2630.5,2630.4,4.65482966]
[1729587745402,0.43712852,2630.5,2630.4,0.81255427]
[1729587745605,0.01897107,2630.6,2630.4,0.81255427]
[1729587745794,0.39275111,2630.9,2630.4,4.61412427]
[1729587746438,0.39275111,2630.9,2630.5,3.80154]
[1729587746598,0.39275111,2630.9,2630.7,6.76345661]
[1729587746895,0.4370063,2631.1,2631.0,3.80083]
[1729587747232,4.58278209,2632.1,2631.4,3.80025]
[1729587747233,3.79955,2631.9,2631.4,3.80025]
[1729587747523,4.19258794,2631.8,2631.5,0.04580275]
[1729587747725,3.79983,2631.7,2631.5,0.04580275]
[1729587748013,3.79983,2631.7,2631.1,3.80058]
[1729587748212,0.39280794,2631.8,2631.6,0.04574794]
[1729587748383,0.39280794,2631.8,2631.7,0.04569313]
[1729587748723,0.59535521,2632.3,2631.8,3.79956]
[1729587748922,0.59535521,2632.3,2632.2,3.7991]
[1729587749085,0.84925642,2632.4,2632.2,0.7717]
[1729587749292,0.43682656,2632.4,2632.2,0.7717]
[1729587749505,0.43682656,2632.4,2631.6,0.7717]
[1729587749806,0.42356066,2632.3,2631.7,3.79968]
[1729587750034,0.42356066,2632.3,2631.9,3.7995]
[1729587750209,0.43682656,2632.4,2632.2,3.79908]
[1729587750417,0.43682656,2632.4,2631.7,3.79975]
[1729587750418,3.79884,2632.4,2631.7,3.79975]
[1729587750623,3.79875,2632.5,2631.7,3.79971]
[1729587750801,4.19171461,2632.7,2632.0,3.79936]
[1729587751134,0.41917146,2632.6,2632.0,3.79936]
[1729587751483,4.21769146,2632.6,2631.9,3.79944]
[1729587751786,0.41917146,2632.6,2632.0,0.07597365]
[1729587751982,0.41917146,2632.6,2632.2,4.59967]
[1729587752224,4.21776146,2632.6,2632.2,0.8006]
[1729587752392,0.41917146,2632.6,2632.2,4.59959]
[1729587752594,3.79825,2632.8,2632.2,8.39858]
[1729587752797,3.79825,2632.8,2632.2,4.59959]
[1729587753823,3.79825,2632.8,2632.2,0.8006]
[1729587754023,4.19171434,2632.8,2632.2,0.8006]
[1729587754433,3.79855,2632.6,2631.8,4.63285]
[1729587754644,0.379855,2632.5,2631.9,3.79953]
[1729587754996,0.379855,2632.5,2632.0,3.79928]
[1729587755197,3.0,2632.7,2632.1,3.87521383]
[1729587755701,0.83019363,2632.8,2632.4,0.826]
[1729587755907,0.83019363,2632.8,2632.6,3.79848]
[1729587756117,0.43672929,2632.8,2632.6,3.79848]
[1729587756533,0.43672929,2632.8,2632.7,0.07595812]
[1729587756827,0.43672929,2632.8,2632.7,3.87433812]
[1729587757323,0.39337508,2633.4,2632.8,4.62423]
[1729587757532,0.01897107,2633.5,2632.8,4.62423]
[1729587757844,3.7968,2633.8,2633.0,3.79782]
[1729587758301,0.39333042,2633.8,2633.2,0.7751]
[1729587758502,0.39333042,2633.8,2633.3,3.7974]
[1729587759101,0.39333042,2633.8,2633.2,0.7751]
[1729587759436,3.79678,2633.9,2633.2,0.7751]
[1729587759734,3.79676,2633.9,2633.3,3.79749]
[1729587759942,3.0,2634.0,2633.4,3.79735]
[1729587760142,4.058311,2634.0,2633.5,3.79721]
[1729587760814,1.058311,2634.0,2633.5,3.79721]
[1729587761248,3.79653,2634.0,2633.3,7.59491]
[1729587761442,3.79667,2633.9,2633.2,0.7751]
[1729587761606,3.79695,2633.7,2633.2,4.57273]
[1729587762311,3.79667,2633.9,2633.2,4.57273]
[1729587762514,4.18970396,2634.1,2633.2,0.7751]
[1729587762732,3.79665,2633.9,2633.3,3.79749]
[1729587762935,3.79665,2633.9,2633.4,0.07593618]
[1729587763248,8.70515436,2634.1,2633.4,3.79736]
[1729587763645,8.70514436,2634.1,2633.5,3.79721]
[1729587763798,4.90867436,2634.1,2633.5,3.79721]
[1729587764004,4.90867436,2634.1,2633.2,1.232379]
[1729587764005,0.39327396,2634.1,2633.6,0.07593189]
[1729587764242,3.79624,2634.2,2633.7,4.57684]
[1729587764540,3.79604,2634.4,2633.8,0.07592527]
[1729587764842,3.79586,2634.5,2633.8,0.07592527]
[1729587765141,3.79586,2634.5,2633.9,3.79663]
[1729587765446,3.79609,2634.3,2633.9,1.19125038]
[1729587765648,3.79609,2634.3,2633.7,8.03992856]
[1729587766002,3.79586,2634.5,2633.9,0.8068]
[1729587766199,3.79565,2634.6,2634.1,3.79636]
[1729587766439,3.79565,2634.6,2633.9,4.60344]
[1729587766647,3.79565,2634.6,2634.0,3.79642]
[1729587766939,3.79565,2634.6,2634.1,0.07591178]
[1729587767839,0.01897107,2634.7,2634.3,3.79602]
[1729587768043,3.79559,2634.7,2634.2,0.7852]
[1729587768248,3.79567,2634.6,2634.2,0.7852]
[1729587768636,3.79579,2634.5,2634.2,0.7852]
[1729587769010,3.79603,2634.4,2634.2,0.7852]
[1729587769230,3.79607,2634.3,2634.2,0.7852]
[1729587769408,3.79579,2634.5,2634.2,0.7852]
[1729587769746,3.79607,2634.3,2634.2,0.7852]
[1729587770043,3.79579,2634.5,2634.2,0.7852]
[1729587770747,3.79595,2634.4,2634.2,0.7852]
[1729587771609,3.79579,2634.5,2634.2,0.7852]
[1729587772126,7.59171,2634.5,2634.2,0.7852]
[1729587772327,3.79557,2634.7,2634.3,0.07591729]
[1729587772540,3.79557,2634.7,2634.2,0.7852]
[1729587772853,3.79557,2634.7,2634.3,0.0759101]
[1729587773150,3.79557,2634.7,2634.4,0.0759101]
[1729587773326,3.79528,2634.9,2634.4,0.0759101]
[1729587773530,3.79537,2634.8,2634.3,3.79598]
[1729587773756,3.79565,2634.6,2634.3,1.13485452]
[1729587774057,3.79565,2634.6,2634.2,0.7852]
[1729587776322,3.79536,2634.8,2634.2,0.7852]
[1729587776756,3.79595,2634.4,2634.2,0.7852]
[1729587776963,7.59145,2634.6,2634.2,0.7852]
[1729587777129,3.79579,2634.5,2634.2,0.7852]
[1729587777749,0.39318335,2634.8,2634.2,0.7852]
[1729587777750,3.79594,2634.4,2634.2,0.7852]
[1729587778065,3.79608,2634.3,2633.9,0.7709]
[1729587778364,3.79644,2634.1,2633.9,0.7709]
[1729587778523,7.59288,2634.1,2633.9,0.7709]
[1729587778871,3.79644,2634.1,2633.9,0.7709]